bitfinex/quotes_ETHUSD_20210701
["timestamp","ask_amount","ask_price","bid_price","bid_amount"]
[1625141030224,0.43444419,2119.8,2119.7,0.34921412]
[1625141030778,7.69637007,2119.8,2119.7,0.34921412]
[1625141030877,58.56461162,2119.8,2119.7,0.34921412]
[1625141030981,83.56461162,2119.8,2119.7,0.34921412]
[1625141031076,123.28725683,2119.8,2119.7,0.34921412]
[1625141031175,130.54918271,2119.8,2119.7,0.34921412]
[1625141031278,130.11473852,2119.8,2119.7,0.34921412]
[1625141031380,130.54918271,2119.8,2119.7,0.34921412]
[1625141031625,135.41057519,2119.8,2119.7,0.34921412]
[1625141031829,130.54918271,2119.8,2119.7,0.34921412]
[1625141032075,149.73931235,2119.8,2119.7,0.34921412]
[1625141032430,149.73931235,2119.8,2117.3,2.0]
[1625141032431,142.30146346,2119.8,2117.3,2.0]
[1625141032529,21.04614233,2119.7,2117.3,2.0]
[1625141032628,10.0,2119.3,2117.2,10.5106]
[1625141032728,15.01847241,2119.2,2117.2,10.5106]
[1625141032828,10.11092601,2119.1,2117.2,10.5106]
[1625141032956,15.0,2119.0,2117.2,10.5106]
[1625141033057,0.08179425,2118.9,2117.2,10.5106]
[1625141033155,7.26192588,2118.8,2117.2,10.5106]
[1625141033258,0.48711695,2118.7,2117.2,10.5106]
[1625141034008,0.05267276,2118.7,2117.2,10.5106]
[1625141034109,0.05728725,2119.0,2117.2,10.5106]
[1625141034211,0.06530773,2119.2,2117.2,10.5106]
[1625141034308,0.06530773,2119.2,2117.2,13.9988]
[1625141034508,0.06530773,2119.2,2117.2,13.8988]
[1625141034659,0.21944571,2118.7,2117.2,13.8988]
[1625141035829,0.21944571,2118.7,2117.3,9.43251]
[1625141036528,0.43444419,2118.6,2117.3,9.43251]
[1625141038217,46.30268574,2118.6,2117.3,9.43251]
[1625141038318,46.31269247,2118.6,2117.3,9.43251]
[1625141038473,0.16,2118.5,2117.3,9.43251]
[1625141038672,7.69637007,2118.4,2117.3,9.43251]
[1625141038770,68.56461162,2118.4,2117.3,9.43251]
[1625141038869,73.5727563,2118.4,2117.3,9.43251]
[1625141039024,0.16,2118.3,2117.2,9.43073]
[1625141039224,7.26192588,2118.4,2117.2,9.43073]
[1625141039368,0.43444419,2118.2,2117.2,9.43073]
[1625141040324,7.26192588,2118.4,2117.2,9.43073]
[1625141040574,0.43444419,2118.3,2117.2,9.43073]
[1625141040676,15.43444419,2118.3,2117.2,9.43073]
[1625141040778,45.86824155,2118.2,2117.2,9.43073]
[1625141040881,61.38268574,2118.2,2116.7,11.79123]
[1625141040978,61.38268574,2118.2,2116.2,10.1782]
[1625141040979,7.27704056,2118.1,2116.2,10.1782]
[1625141041079,7.27704056,2118.1,2116.1,20.1455]
[1625141041080,15.0,2118.0,2116.1,20.1455]
[1625141041177,46.03476604,2117.9,2116.1,10.1269]
[1625141041280,15.0,2117.8,2116.2,7.08022]
[1625141041379,51.82457109,2117.7,2116.2,7.08022]
[1625141041481,15.0,2117.6,2116.2,7.08022]
[1625141041580,25.45654997,2117.6,2115.5,11.79881]
[1625141041732,53.13016743,2117.5,2115.1,10.5249]
[1625141041831,21.14224128,2117.4,2114.7,2.42108402]
[1625141041977,41.17110986,2117.4,2113.5,10.0876]
[1625141042075,46.17110986,2117.4,2114.0,2.42108402]
[1625141042175,10.16,2117.3,2114.0,2.42108402]
[1625141042328,7.08371,2117.0,2115.0,7.08396]
[1625141042426,7.08371,2117.0,2114.8,11.80226]
[1625141042427,15.43444419,2116.9,2114.5,10.8434]
[1625141042529,0.22851706,2116.8,2114.5,10.8434]
[1625141042625,0.25086167,2116.8,2114.5,10.8434]
[1625141042723,0.25086167,2116.8,2114.4,11.80423]
[1625141042824,0.22179448,2116.6,2114.4,11.80423]
[1625141042926,4.8459494,2116.5,2114.4,11.80423]
[1625141043027,0.43444419,2116.4,2114.4,11.80423]
[1625141043129,53.72713831,2116.4,2114.4,11.80423]
[1625141043326,7.85889676,2116.4,2114.4,11.80423]
[1625141043476,0.07995619,2116.2,2114.4,11.80423]
[1625141043576,45.86824155,2116.1,2114.4,11.80423]
[1625141043732,0.00846767,2116.0,2114.4,11.80423]
[1625141043832,45.8802475,2116.1,2114.4,11.80423]
[1625141043833,0.01200595,2116.1,2114.4,11.80423]
[1625141043931,0.00807431,2116.0,2114.1,2.42108402]
[1625141044082,0.62319808,2117.2,2114.7,20.0]
[1625141044243,0.62319808,2117.2,2115.0,20.0]
[1625141044245,0.00801711,2117.0,2115.0,20.0]
[1625141044343,0.14500733,2117.7,2114.7,23.1505]
[1625141044436,0.43444419,2117.2,2114.9,1.1734]
[1625141044537,0.44206581,2117.2,2114.9,4.71302]
[1625141044637,0.43444419,2117.2,2116.2,7.07875]
[1625141044741,0.07295502,2117.7,2116.2,7.07875]
[1625141044742,0.07295502,2117.7,2116.2,10.13485]
[1625141044743,0.06,2117.7,2116.2,10.13485]
[1625141044838,15.86227943,2117.8,2116.2,10.13485]
[1625141044950,6.95,2117.7,2116.2,10.13485]
[1625141047153,6.95,2117.7,2116.2,7.07875]
[1625141047249,7.38444419,2117.7,2116.2,7.07875]
[1625141047351,6.95,2117.7,2116.2,7.07875]
[1625141047654,0.59444419,2117.6,2116.2,7.07875]
[1625141047754,22.43123084,2117.6,2116.1,9.43717]
[1625141047866,46.30268574,2117.5,2115.7,9.43859]
[1625141047962,15.04752757,2117.4,2115.7,9.43859]
[1625141048061,0.10600746,2117.4,2115.7,9.43859]
[1625141048155,7.69637007,2117.3,2115.7,9.43859]
[1625141048309,0.09252614,2117.4,2116.0,3.3887]
[1625141048455,6.95,2117.7,2116.0,3.3887]
[1625141048991,6.95,2117.7,2116.0,6.9271]
[1625141049287,6.95,2117.7,2116.7,7.07854]
[1625141049388,6.95,2117.7,2116.7,10.75664]
[1625141050041,0.08,2117.6,2116.7,10.75664]
[1625141050189,6.95,2117.7,2116.7,10.75664]
[1625141050995,0.43444419,2117.6,2116.7,10.75664]
[1625141051090,0.43444419,2117.6,2116.5,9.43795]
[1625141051091,46.30268574,2117.6,2116.5,9.43795]
[1625141051295,0.43444419,2117.5,2115.5,4.71759]
[1625141051394,0.46519237,2117.5,2115.4,21.0294]
[1625141051549,53.13016743,2117.4,2115.4,21.0294]
[1625141051643,0.07052804,2117.3,2115.4,21.0294]
[1625141051745,0.05492735,2117.3,2115.9,7.08157]
[1625141051893,0.43444419,2117.2,2115.9,7.08157]
[1625141051996,0.43444419,2117.2,2115.4,22.40343]
[1625141052100,0.44529835,2117.2,2115.4,22.40343]
[1625141052194,45.88727359,2117.1,2115.4,22.40343]
[1625141052294,45.88727359,2117.1,2115.4,10.6039]
[1625141052394,0.05143174,2116.9,2115.4,10.6039]
[1625141052496,0.05143174,2116.9,2115.2,10.4495]
[1625141052497,7.31335762,2116.9,2115.2,10.4495]
[1625141052595,15.0,2116.8,2115.2,10.4495]
[1625141052702,0.0680269,2116.7,2115.2,10.4495]
[1625141052804,0.04422291,2116.6,2115.2,17.5334]
[1625141052897,0.04422291,2116.6,2115.2,7.0839]
[1625141053001,0.96125384,2116.7,2115.2,7.0839]
[1625141053098,0.94991922,2116.7,2115.2,7.0839]
[1625141054082,0.43444419,2116.7,2115.2,7.0839]
[1625141054681,0.43444419,2116.7,2115.2,10.6242207]
[1625141054783,0.22040734,2116.7,2115.2,10.6242207]
[1625141054931,0.22040734,2116.7,2115.2,3.5403207]
[1625141055653,0.22040734,2116.7,2116.0,7.08048]
[1625141055900,0.22040734,2116.7,2115.9,9.44064]
[1625141056053,0.65485153,2116.7,2115.9,9.44064]
[1625141056154,0.65485153,2116.7,2115.1,9.44338]
[1625141056258,0.12,2116.6,2115.1,9.44338]
[1625141056456,0.65485153,2116.7,2115.1,9.44338]
[1625141056705,0.22040734,2116.7,2115.7,7.08304]
[1625141056854,0.43444419,2116.6,2115.7,7.08304]
[1625141059825,0.22040734,2116.7,2115.7,10.60804]
[1625141060662,0.22040734,2116.7,2115.8,3.53946]
[1625141060763,0.22040734,2116.7,2115.8,4.81506]
[1625141061311,0.22040734,2116.7,2116.0,7.0777974]
[1625141062282,0.22040734,2116.7,2116.3,10.40133]
[1625141062874,0.22040734,2116.7,2116.3,13.93965]
[1625141062973,0.22040734,2116.7,2116.5,3.5380635]
[1625141063321,0.22040734,2116.7,2116.5,25.6141935]
[1625141063425,0.22040734,2116.7,2116.5,3.5380635]
[1625141063924,6.95,2117.7,2116.5,4.71711]
[1625141064276,6.95,2117.7,2117.1,7.07577]
[1625141064520,6.95,2117.7,2117.1,4.2757]
[1625141064871,6.95,2117.7,2117.3,3.53732]
[1625141064974,10.85335604,2118.7,2117.5,3.536937]
[1625141065121,10.85335604,2118.7,2117.4,5.766816]
[1625141065572,10.85335604,2118.7,2118.1,11.45858]
[1625141067091,6.95,2118.9,2118.1,11.45858]
[1625141067190,6.95,2118.9,2118.4,3.53556]
[1625141067340,6.95,2118.9,2118.6,7.3092736]
[1625141067943,6.95,2118.9,2118.6,14.3804236]
[1625141068294,6.95,2118.9,2118.6,7.3092736]
[1625141068642,7.12513824,2118.9,2118.6,7.3092736]
[1625141069321,7.12513824,2118.9,2118.6,3.5355736]
[1625141069476,7.12513824,2118.9,2118.7,7.07003]
[1625141069778,7.12513824,2118.9,2118.5,9.4282]
[1625141070976,0.17513824,2118.9,2118.5,9.4282]
[1625141071510,10.85968215,2119.6,2118.5,9.4282]
[1625141071611,10.85968215,2119.6,2118.5,14.4345]
[1625141071711,10.85968215,2119.6,2118.6,3.5341022]
[1625141072416,10.85968215,2119.6,2118.5,5.0063]
[1625141072814,10.85968215,2119.6,2119.1,7.06775]
[1625141073784,10.85968215,2119.6,2118.2,11.78371]
[1625141073882,10.85968215,2119.6,2118.7,7.07167]
[1625141074137,45.86824155,2119.5,2118.2,11.78371]
[1625141074237,56.30268574,2119.5,2118.2,11.78371]
[1625141074388,7.26192588,2119.4,2118.2,11.78371]
[1625141074786,10.99936927,2119.6,2118.2,11.78371]
[1625141074988,10.99936927,2119.6,2118.8,7.07121]
[1625141075188,10.99936927,2119.6,2118.8,11.71131]
[1625141075538,10.99936927,2119.6,2118.8,11.70192244]
[1625141077506,0.13968712,2119.6,2118.8,11.70192244]
[1625141078874,9.78954717,2120.1,2118.8,11.70192244]
[1625141079684,29.78954717,2120.1,2118.8,7.06182244]
[1625141079792,0.43444419,2120.0,2118.8,7.06182244]
[1625141079879,50.91758574,2120.0,2118.8,7.06182244]
[1625141080026,22.43463573,2119.9,2118.7,9.42599]
[1625141080125,22.45058102,2119.9,2117.7,10.7062]
[1625141080227,22.29058102,2119.9,2117.7,10.7062]
[1625141080382,5.17490692,2119.8,2117.7,10.7062]
[1625141080474,0.13824779,2119.7,2117.7,10.7062]
[1625141080727,0.13824779,2119.7,2118.5,7.07213]
[1625141080876,8.96137209,2119.8,2117.8,10.4344]
[1625141080975,0.02407561,2119.7,2117.8,10.4344]
[1625141081228,0.53275824,2119.8,2117.8,10.4344]
[1625141081323,0.53275824,2119.8,2117.8,25.4344]
[1625141081324,0.52520373,2119.8,2117.8,25.4344]
[1625141081473,0.51547503,2119.8,2117.8,25.4344]
[1625141081777,8.2194279,2119.9,2118.9,7.07064]
[1625141081925,8.2118451,2119.9,2118.9,7.07064]
[1625141082475,0.94991922,2119.9,2118.9,7.07064]
[1625141082637,0.84991922,2119.9,2118.9,7.07064]
[1625141082932,0.33444419,2119.9,2118.9,7.07064]
[1625141084237,8.14662706,2120.0,2118.9,7.07064]
[1625141084986,10.33444419,2119.9,2118.9,7.07064]
[1625141084989,7.26842281,2119.8,2117.7,10.7062]
[1625141085083,27.46866034,2119.8,2117.7,10.7062]
[1625141085380,12.46866034,2119.8,2117.7,10.7062]
[1625141085483,15.01051852,2119.7,2117.7,10.7062]
[1625141085733,15.01051852,2119.7,2117.8,25.4344]
[1625141085835,15.01051852,2119.7,2118.8,10.96822]
[1625141085929,0.5307158,2119.9,2118.8,10.96822]
[1625141085930,0.51547503,2119.9,2118.8,10.96822]
[1625141086333,0.11197551,2119.7,2118.8,10.96822]
[1625141087035,0.11197551,2119.7,2118.8,25.96822]
[1625141087192,0.11197551,2119.7,2118.9,0.08]
[1625141087491,8.14662706,2120.0,2118.9,0.08]
[1625141087595,0.51547503,2120.0,2119.0,3.53307]
[1625141087693,0.51547503,2120.0,2119.3,3.5328911]
[1625141087796,6.55302646,2120.4,2119.3,3.5328911]
[1625141087891,16.37932298,2120.6,2119.3,7.8124911]
[1625141087995,16.37932298,2120.6,2119.9,7.06503]
[1625141088247,41.24652498,2120.8,2119.9,12.05253]
[1625141088349,13.13935515,2120.8,2119.9,27.05253]
[1625141088698,13.13935515,2120.8,2119.9,47.05253]
[1625141088699,6.58792298,2120.8,2119.9,47.05253]
[1625141088845,6.58792298,2120.8,2120.0,0.2]
[1625141089194,6.58792298,2120.8,2119.9,42.24776278]
[1625141089302,6.58792298,2120.8,2120.4,7.06187]
[1625141090438,6.53792298,2120.8,2120.3,9.41583]
[1625141090533,6.53792298,2120.8,2119.5,11.77487]
[1625141090635,11.23552298,2120.8,2119.5,11.77487]
[1625141091437,11.23552298,2120.8,2120.1,7.06677]
[1625141091438,6.48792298,2120.8,2120.1,7.06677]
[1625141091543,6.48792298,2120.8,2120.1,11.06487]
[1625141091707,6.48792298,2120.8,2120.2,0.18]
[1625141092001,5.12122298,2120.8,2120.2,0.18]
[1625141092104,5.12122298,2120.8,2120.2,7.24233]
[1625141092250,4.99552947,2120.8,2120.2,10.7737715]
[1625141092347,4.99552947,2120.8,2120.2,10.5937715]
[1625141092899,24.82318406,2121.7,2120.2,10.5937715]
[1625141093010,24.82318406,2121.7,2120.9,7.06225]
[1625141093152,6.54677382,2121.7,2121.0,0.06]
[1625141093548,6.95,2121.8,2121.0,0.06]
[1625141093751,6.95,2121.8,2120.8,9.41633]
[1625141094085,24.81750539,2121.9,2121.3,7.06103]
[1625141094536,5.17850289,2121.8,2121.3,7.06103]
[1625141094735,0.2501307,2121.7,2121.3,7.06103]
[1625141095083,0.2501307,2121.8,2121.3,7.06103]
[1625141095184,0.2501307,2121.6,2121.3,10.45943]
[1625141096331,3.07e-05,2121.6,2121.3,10.45943]
[1625141096432,6.54494941,2121.9,2121.3,10.45943]
[1625141096529,6.54494941,2121.9,2121.4,0.08]
[1625141096633,6.54494941,2121.9,2121.6,7.06018]
[1625141096880,24.77888646,2122.2,2121.6,7.06018]
[1625141097179,0.51547503,2122.8,2121.6,7.06018]
[1625141097180,34.57774268,2122.5,2121.6,7.06018]
[1625141097285,34.57774268,2122.5,2121.7,0.04]
[1625141097383,16.33594142,2122.5,2121.7,0.04]
[1625141097482,0.47464142,2122.5,2121.7,0.04]
[1625141097582,0.47464142,2122.5,2121.6,17.9999]
[1625141097681,0.47464142,2122.5,2121.8,3.6255]
[1625141097784,0.47464142,2122.5,2122.1,7.05814]
[1625141097935,0.47464142,2122.5,2121.5,9.41357]
[1625141098234,5.64296448,2122.5,2121.5,9.41357]
[1625141098530,13.87022668,2122.2,2121.5,9.41357]
[1625141098875,17.13383325,2122.2,2121.5,9.41357]
[1625141099226,5.16758964,2122.1,2121.5,9.41357]
[1625141099429,5.16758964,2122.1,2121.2,7.0624]
[1625141099628,17.1347058,2122.1,2120.9,11.76711]
[1625141099909,8.43217295,2121.9,2120.9,11.76711]
[1625141100101,11.96711616,2122.1,2120.9,11.76711]
[1625141100102,8.42976334,2122.0,2120.9,11.76711]
[1625141100403,8.42976334,2122.0,2120.7,10.7265]
[1625141100404,14.38387292,2122.0,2120.7,10.7265]
[1625141100698,5.16617175,2121.9,2120.7,10.7265]
[1625141100897,12.77964109,2121.9,2120.7,10.7265]
[1625141101094,5.16650467,2121.8,2120.7,10.7265]
[1625141101194,5.06650467,2121.8,2120.4,11.76985]
[1625141101295,5.07471448,2121.8,2120.4,11.76985]
[1625141101595,7.61410275,2121.7,2120.4,11.76985]
[1625141101897,7.61407194,2121.8,2120.4,11.76985]
[1625141101996,7.61407194,2121.8,2120.6,7.06417]
[1625141102145,11.96497284,2121.8,2120.6,7.06417]
[1625141102795,17.40352767,2121.8,2120.6,7.06417]
[1625141103017,7.61374349,2121.7,2120.6,7.06417]
[1625141103266,7.61374349,2121.7,2120.6,7.05417]
[1625141103369,53.48198504,2121.7,2120.6,7.05417]
[1625141103466,53.99746007,2121.7,2120.6,7.05417]
[1625141103916,65.96040871,2121.7,2120.6,7.05417]
[1625141104166,74.66075501,2121.7,2120.6,7.05417]
[1625141104468,7.61332355,2121.5,2120.6,7.05417]
[1625141104721,13.56755634,2121.6,2120.6,7.05417]
[1625141105371,17.91841711,2121.6,2120.6,7.05417]
[1625141106773,27.71392812,2121.6,2120.6,7.05417]
[1625141106873,0.51547503,2121.5,2120.6,7.05417]
[1625141107473,4.86877477,2121.5,2120.6,7.05417]
[1625141107874,16.84042487,2121.5,2120.6,7.05417]
[1625141108326,27.72371407,2121.5,2120.6,7.05417]
[1625141108482,0.51547503,2121.4,2120.6,7.05417]
[1625141109426,19.01708702,2121.5,2120.6,7.05417]
[1625141109577,19.01708702,2121.5,2121.0,0.174872]
[1625141110578,29.90092152,2121.5,2121.0,0.174872]
[1625141110677,0.51547503,2121.4,2121.0,0.174872]
[1625141111780,11.39876423,2121.5,2121.0,3.989572]
[1625141112278,0.11184739,2121.4,2121.0,3.989572]
[1625141112379,0.11184739,2121.4,2121.2,9.41585]
[1625141114841,0.11184739,2121.4,2121.3,0.174872]
[1625141115038,0.51547503,2121.9,2121.3,0.174872]
[1625141115189,0.51547503,2121.9,2121.3,0.234872]
[1625141115287,0.51547503,2122.0,2121.3,0.174872]
[1625141116291,0.51547503,2122.0,2121.6,7.06143]
[1625141116443,30.91042852,2122.1,2121.6,10.17043]
[1625141116535,18.54722852,2122.1,2121.6,10.17043]
[1625141116630,18.54722852,2122.1,2121.7,0.2]
[1625141116784,18.54722852,2122.1,2121.8,3.5289379]
[1625141116977,7.61177812,2122.1,2121.9,0.16]
[1625141117229,15.94179998,2122.9,2121.8,3.5289379]
[1625141117329,15.94179998,2122.9,2122.4,7.05724]
[1625141117429,15.94179998,2122.9,2122.4,6.54176497]
[1625141117529,15.94179998,2122.9,2122.4,10.47596497]
[1625141117931,15.94179998,2122.9,2122.4,3.9342]
[1625141118030,4.07285259,2122.8,2122.4,3.9342]
[1625141118797,4.07285259,2122.8,2122.4,3.92117269]
[1625141118942,16.04905513,2122.9,2122.4,3.92117269]
[1625141119044,16.04905513,2122.9,2122.4,10.97841269]
[1625141119143,7.71461543,2122.9,2122.4,10.97841269]
[1625141119340,11.78292614,2122.9,2122.4,10.97841269]
[1625141119892,7.71461543,2122.9,2122.4,10.97841269]
[1625141120195,7.71461543,2122.9,2122.6,7.232222]
[1625141120966,7.66461543,2122.9,2122.6,7.232222]
[1625141121049,0.06177544,2122.9,2122.6,7.232222]
[1625141121455,0.06177544,2122.9,2122.6,0.174872]
[1625141121902,4.06375775,2122.8,2122.6,0.174872]
[1625141123353,4.06033631,2122.7,2122.6,0.174872]
[1625141123756,4.06033631,2122.7,2121.1,10.5706]
[1625141123757,0.33444419,2122.7,2121.5,7.06114]
[1625141124304,0.33444419,2122.7,2121.0,11.0928]
[1625141124455,8.43792591,2122.4,2120.8,10.935]
[1625141124555,8.45090083,2122.4,2120.7,10.6614]
[1625141124653,4.05993178,2122.2,2120.7,10.6614]
[1625141124751,0.01038029,2122.1,2120.6,33.49257]
[1625141124852,14.88670526,2122.0,2120.6,33.49257]
[1625141125001,14.89927867,2122.0,2120.6,22.40327]
[1625141125203,14.89927867,2122.0,2120.9,7.06298]
[1625141125443,14.88670526,2122.0,2120.9,7.06298]
[1625141125732,4.060376,2121.9,2120.9,7.06298]
[1625141126033,7.30871892,2121.9,2120.9,7.06298]
[1625141127131,14.37169892,2121.9,2120.9,7.06298]
[1625141127234,14.37169892,2121.9,2120.6,22.40327]
[1625141127336,4.05964704,2121.8,2120.6,22.40327]
[1625141127434,4.06720568,2121.8,2120.6,22.40327]
[1625141127534,7.30741884,2121.8,2120.6,22.40327]
[1625141127702,4.05989797,2121.7,2120.6,22.40327]
[1625141128156,7.30753026,2121.8,2120.6,22.40327]
[1625141128352,4.05978708,2121.7,2120.8,7.06337]
[1625141128455,4.05978708,2121.7,2120.6,10.6358]
[1625141128553,4.39423127,2121.7,2120.6,10.6358]
[1625141128749,7.30741102,2121.6,2120.6,10.6358]
[1625141128951,4.05998646,2121.4,2120.6,10.6358]
[1625141129154,4.06030482,2121.3,2120.6,10.6358]
[1625141129254,4.06030482,2121.3,2120.1,20.9773]
[1625141129255,4.06030482,2121.3,2120.1,10.304]
[1625141129404,7.09390969,2121.2,2120.1,7.06548]
[1625141129502,20.89948223,2121.2,2120.1,7.06548]
[1625141129602,20.87083254,2121.2,2120.1,7.06548]
[1625141129703,4.06058829,2121.1,2119.9,11.77112]
[1625141130003,4.06058829,2121.1,2119.5,10.7808]
[1625141130004,4.06094523,2121.0,2119.5,10.7808]
[1625141130060,4.11201148,2121.0,2119.4,10.9283]
[1625141130156,7.31015641,2120.8,2119.4,10.9283]
[1625141130259,0.03261497,2120.7,2119.4,10.9283]
[1625141130358,4.06170348,2120.6,2119.4,10.9283]
[1625141130456,4.06931318,2120.6,2119.4,10.9283]
[1625141130558,4.06343059,2120.5,2119.4,10.9283]
[1625141130805,7.3142064,2120.5,2119.4,10.9283]
[1625141131011,7.06869,2120.3,2119.4,10.9283]
[1625141131257,0.51547503,2120.4,2119.4,10.9283]
[1625141132109,12.73220916,2120.5,2119.4,10.9283]
[1625141132242,19.23359079,2120.5,2119.4,10.9283]
[1625141132445,6.50138163,2120.5,2119.4,10.9283]
[1625141133146,6.50138163,2120.5,2119.4,17.99619]
[1625141134750,0.33444419,2120.4,2119.4,10.9283]
[1625141134850,4.50614419,2120.4,2119.4,10.9283]
[1625141134949,8.57974611,2120.4,2119.4,10.9283]
[1625141135098,0.14,2120.3,2119.4,10.9283]
[1625141135349,0.14,2120.3,2119.0,10.3255]
[1625141135446,4.22526966,2120.3,2118.4,11.77924]
[1625141135549,0.08913881,2120.2,2118.4,11.77924]
[1625141135703,13.85205545,2120.1,2118.4,11.77924]
[1625141135798,0.07709583,2120.0,2118.4,11.77924]
[1625141135900,8.49753263,2120.0,2118.4,11.77924]
[1625141136150,16.57794054,2119.9,2118.6,7.07009]
[1625141136300,9.50775054,2119.9,2118.6,7.07009]
[1625141136548,12.76760947,2119.9,2118.6,7.07009]
[1625141136755,0.33444419,2119.8,2118.6,7.07009]
[1625141136853,0.41444419,2119.8,2118.6,7.07009]
[1625141137002,0.33444419,2119.8,2118.6,7.07009]
[1625141137354,25.07408535,2120.0,2118.6,7.07009]
[1625141137652,0.51547503,2119.9,2118.6,7.07009]
[1625141138408,7.85602376,2119.9,2118.6,7.07009]
[1625141138507,45.86824155,2119.8,2118.3,10.0308]
[1625141138612,45.86824155,2119.8,2118.3,17.10284]
[1625141138613,7.07238,2119.6,2118.3,17.10284]
[1625141138757,0.00930078,2119.6,2118.3,10.0308]
[1625141138856,19.08886186,2119.6,2118.3,10.0308]
[1625141139020,19.10499591,2119.6,2118.3,10.0308]
[1625141139156,0.04,2119.5,2118.3,10.0308]
[1625141139357,45.86824155,2119.4,2117.8,11.0711]
[1625141139459,60.89055261,2119.4,2117.8,11.0711]
[1625141139710,7.07491,2118.9,2117.4,7.07491]
[1625141139809,0.01509174,2118.9,2117.3,32.4413]
[1625141139908,0.07617055,2118.8,2117.3,32.4413]
[1625141141249,0.07617055,2118.8,2117.8,7.07458]
[1625141141347,7.34604792,2119.0,2117.8,7.07458]
[1625141141549,0.08,2118.7,2117.8,7.07458]
[1625141141751,7.34604792,2119.0,2117.8,7.07458]
[1625141142052,9.53094004,2118.9,2117.8,7.07458]
[1625141142251,12.79578961,2119.0,2117.8,7.07458]
[1625141142451,19.3312705,2119.0,2117.8,7.07458]
[1625141142701,6.53548089,2119.0,2117.8,7.07458]
[1625141142851,0.11199159,2118.7,2117.8,7.07458]
[1625141142952,0.11199159,2118.7,2117.8,7.02458]
[1625141144604,4.0885971,2119.0,2118.7,0.02054015]
[1625141144757,4.0885971,2119.0,2117.3,32.4413]
[1625141144758,45.86824155,2118.9,2117.3,32.4413]
[1625141144950,0.02995289,2118.8,2117.3,32.4413]
[1625141145047,4.13363686,2118.8,2117.3,32.4413]
[1625141145148,4.13363686,2118.8,2117.3,22.0892]
[1625141145350,4.1687187,2118.7,2117.4,7.0758]
[1625141145548,15.07205364,2118.7,2117.4,7.0758]
[1625141145648,15.08023051,2118.7,2117.4,7.0758]
[1625141146131,15.07205364,2118.7,2117.4,7.0758]
[1625141146231,7.63233446,2118.7,2117.4,7.0758]
[1625141148712,7.74433547,2118.7,2117.4,7.0758]
[1625141149210,0.11200101,2118.7,2117.4,7.0758]
[1625141149461,0.11200101,2118.7,2117.4,11.83255673]
[1625141149662,0.11200101,2118.7,2117.6,7.07102]
[1625141149764,0.11200101,2118.7,2117.6,13.05572]
[1625141149865,0.11200101,2118.7,2117.7,0.04]
[1625141149963,0.11200101,2118.7,2117.7,2.11137458]
[1625141150303,1.01e-06,2118.7,2118.1,11.44474]
[1625141150549,1.01e-06,2118.7,2118.2,0.06]
[1625141151251,1.01e-06,2118.7,2118.2,2.07137458]
[1625141151350,1.01e-06,2118.7,2118.4,10.6039361]
[1625141151652,1.01e-06,2118.7,2118.4,12.67531068]
[1625141151904,1.01e-06,2118.7,2118.4,12.66333021]
[1625141152002,1.01e-06,2118.7,2118.4,7.06946]
[1625141154604,31.72121109,2119.3,2118.4,7.06946]
[1625141154833,31.72121109,2119.3,2117.7,20.3048]
[1625141154835,0.1,2119.2,2117.7,20.3048]
[1625141154974,0.14028036,2119.2,2117.7,20.3048]
[1625141155072,0.04028036,2119.2,2117.7,20.3048]
[1625141155622,0.55575539,2119.2,2117.7,20.3048]
[1625141155972,8.75943775,2119.2,2117.7,20.3048]
[1625141156177,8.71915739,2119.2,2118.4,7.06946]
[1625141156274,0.51547503,2119.2,2118.4,7.06946]
[1625141156873,0.08,2119.1,2118.3,9.42595]
[1625141157078,9.37696888,2119.1,2118.3,9.42595]
[1625141157176,0.08,2119.1,2118.3,9.42595]
[1625141157276,0.51547503,2119.1,2118.3,9.42595]
[1625141157880,15.28120544,2119.1,2118.3,9.42595]
[1625141157979,18.56215528,2119.1,2118.3,9.42595]
[1625141158279,26.21772308,2119.1,2118.3,9.42595]
[1625141158388,26.21772308,2119.1,2118.0,9.42779]
[1625141158389,7.77740091,2119.0,2118.0,9.42779]
[1625141158483,45.86824155,2118.9,2117.3,22.86052]
[1625141158582,15.0,2118.8,2117.3,11.78832]
[1625141158682,0.04307411,2118.7,2117.3,11.78832]
[1625141158833,0.21766236,2118.7,2117.3,11.78832]
[1625141158932,0.05766236,2118.7,2117.7,9.43096]
[1625141159033,52.95245853,2118.9,2117.7,9.43096]
[1625141159180,8.19994339,2118.7,2117.7,9.43096]
[1625141159685,13.66658627,2118.8,2117.7,9.43096]
[1625141159787,13.66607688,2118.9,2117.7,9.43096]
[1625141160270,0.06,2118.8,2117.7,9.43096]
[1625141160368,9.29333653,2118.7,2117.7,9.43096]
[1625141160570,15.85283992,2118.8,2117.7,9.43096]
[1625141160874,19.13270842,2118.8,2117.7,9.43096]
[1625141161128,6.55979583,2118.8,2117.7,9.43096]
[1625141161425,6.55979583,2118.8,2117.7,13.07476]
[1625141161560,18.55349971,2119.0,2117.7,13.07476]
[1625141161561,25.11255828,2119.0,2117.7,15.3217116]
[1625141161808,7.0745336,2119.0,2117.7,15.3217116]
[1625141161907,7.0745336,2119.0,2118.0,3.53542]
[1625141162011,7.0745336,2119.0,2118.5,7.07084]
[1625141162112,7.0745336,2119.0,2118.5,10.48324]
[1625141162309,0.51547503,2119.0,2118.5,10.48324]
[1625141162660,9.84382027,2119.1,2118.5,10.48324]
[1625141162963,9.84382027,2119.1,2118.5,16.2650016]
[1625141163164,9.84382027,2119.1,2118.8,7.06937]
[1625141165629,5.43800449,2119.3,2118.8,7.06937]
[1625141166506,4.92252946,2119.3,2118.8,7.06937]
[1625141167059,4.92252946,2119.3,2118.9,3.5345]
[1625141167209,4.92252946,2119.3,2119.1,7.06849]
[1625141168924,9.83343717,2119.4,2119.1,7.06849]
[1625141169125,1.05,2119.3,2119.1,7.06849]
[1625141169927,6.09773717,2119.4,2119.1,7.06849]
[1625141170079,1.05,2119.2,2119.1,7.06849]
[1625141170176,1.05,2119.3,2119.2,3.5340157]
[1625141170277,0.51547503,2119.7,2119.2,2.4840157]
[1625141170376,0.51547503,2119.7,2119.4,3.53381]
[1625141171097,6.95,2119.8,2119.4,3.53381]
[1625141172200,6.95,2119.8,2119.5,7.06776]
[1625141174212,6.95,2119.8,2119.5,27.55903253]